[Event "19th IPCA WCC 2019"]
[Site "Ruzomberok"]
[Date "2019.07.05"]
[Round "8.17"]
[White "Sovietova, Kateryna"]
[Black "Kaydanovich, Marina"]
[Result "0-1"]
[ECO "D00"]
[WhiteElo "1279"]
[BlackElo "1760"]
[Annotator "NA"]
[PlyCount "99"]
[EventDate "2019.06.28"]
[EventType "swiss"]
[EventCountry "SVK"]
[SourceTitle "playchess.com"]
[Source "ChessBase"]
[SourceQuality "1"]
[TimeControl "5400+30"]

1. d4 {[%emt 0:00:00]} d5 {[%emt 0:00:00]} 2. Bf4 {[%emt 0:00:05]} Nf6 {[%emt 0:00:00]} 3. e3 {[%emt 0:00:17]} e6 {[%emt 0:00:00]} 4. Nf3 {[%emt 0:00:20]} Nh5 {[%emt 0:00:42]} 5. Bd3 {[%emt 0:03:28]} Nxf4 {[%emt 0:01:10]} 6. exf4 {[%emt 0:00:10]} c5 {[%emt 0:02:58]} 7. c3 {[%emt 0:01:59]} c4 {[%emt 0:02:47]} 8. Be2 {[%emt 0:01:11]} Bd6 {[%emt 0:02:08]} 9. g3 {[%emt 0:02:48]} b5 {[%emt 0:01:45]} 10. O-O {[%emt 0:00:48]} O-O {[%emt 0:00:36]} 11. Ne5 {[%emt 0:01:48]} f6 {[%emt 0:02:22]} 12. Ng4 {[%emt 0:04:23]} Nc6 {[%emt 0:00:41]} 13. Nd2 {[%emt 0:01:57]} Bd7 {[%emt 0:03:36]} 14. Re1 {[%emt 0:02:46]} b4 {[%emt 0:02:27]} 15. Rb1 {[%emt 0:14:13]} Qa5 {[%emt 0:00:59]} 16. Qc1 {[%emt 0:05:54]} Rab8 {[%emt 0:02:11]} 17. Qc2 {[%emt 0:04:15]} Rb7 {[%emt 0:15:13]} 18. Ne3 {[%emt 0:13:00]} Rfb8 {[%emt 0:05:18]} 19. Bg4 {[%emt 0:04:01]} f5 {[%emt 0:00:56]} 20. Bh3 {[%emt 0:00:22]} bxc3 {[%emt 0:01:53]} 21. bxc3 {[%emt 0:00:37]} Ne7 {[%emt 0:06:43]} 22. Rxb7 {[%emt 0:01:58]} Rxb7 {[%emt 0:01:36]} 23. Rb1 {[%emt 0:01:16]} Rxb1+ {[%emt 0:03:30]} 24. Nxb1 {[%emt 0:00:13]} Qa4 {[%emt 0:02:52]} 25. Qe2 {[%emt 0:03:53]} Qb5 {[%emt 0:01:20]} 26. Qc2 {[%emt 0:01:32]} Nc8 {[%emt 0:01:31]} 27. Bf1 {[%emt 0:03:51]} Nb6 {[%emt 0:00:14]} 28. Kg2 {[%emt 0:04:48]} Na4 {[%emt 0:03:43]} 29. Nd1 {[%emt 0:02:22]} Qb8 {[%emt 0:03:41]} 30. Nd2 {[%emt 0:01:25]} Qb6 {[%emt 0:05:15]} 31. Nf3 {[%emt 0:03:22]} Ba3 {[%emt 0:01:09]} 32. Nd2 {[%emt 0:02:33]} Nb2 {[%emt 0:01:26]} 33. Nb1 {[%emt 0:06:37]} Nxd1 {[%emt 0:07:47]} 34. Qxd1 {[%emt 0:01:44]} Bd6 {[%emt 0:01:12]} 35. Nd2 {[%emt 0:00:35]} Qb2 {[%emt 0:00:18]} 36. Nf3 {[%emt 0:03:57]} Qxa2 {[%emt 0:03:43]} 37. Qe1 {[%emt 0:01:00]} h6 {[%emt 0:00:30]} 38. Ne5 {[%emt 0:00:44]} Be8 {[%emt 0:00:18]} 39. Be2 {[%emt 0:00:33]} a5 {[%emt 0:00:47]} 40. g4 {[%emt 0:02:01]} Bxe5 {[%emt 0:00:43]} 41. fxe5 {[%emt 0:00:07]} Bg6 {[%emt 0:02:09]} 42. gxf5 {[%emt 0:00:17]} Bxf5 {[%emt 0:00:03]} 43. Kg3 {[%emt 0:01:08]} a4 {[%emt 0:00:33]} 44. Qd1 {[%emt 0:00:44]} Qb3 {[%emt 0:00:26]} 45. Qxb3 {[%emt 0:00:47]} cxb3 {[%emt 0:00:04]} 46. Bb5 {[%emt 0:00:33]} b2 {[%emt 0:00:10]} 47. Bxa4 {[%emt 0:00:12]} b1=Q 48. Kg2 Qe4+ {[%emt 0:02:16]} 49. Kf1 {[%emt 0:00:56]} Bh3+ {[%emt 0:00:05]} 50. Kg1 0-1

[Event "19th IPCA WCC 2019"]
[Site "Ruzomberok"]
[Date "2019.07.05"]
[Round "8.18"]
[White "Pilimon, Zbigniew"]
[Black "Spirka, Jan"]
[Result "1-0"]
[ECO "D20"]
[WhiteElo "1670"]
[BlackElo "1366"]
[Annotator "NA"]
[PlyCount "97"]
[EventDate "2019.06.28"]
[EventType "swiss"]
[EventCountry "SVK"]
[SourceTitle "playchess.com"]
[Source "ChessBase"]
[SourceQuality "1"]
[TimeControl "5400+30"]

1. d4 {[%emt 0:00:00]} d5 {[%emt 0:00:13]} 2. c4 {[%emt 0:00:13]} dxc4 {[%emt 0:01:33]} 3. Qa4+ {[%emt 0:00:28]} c6 4. Qxc4 Be6 {[%emt 0:02:21]} 5. Qd3 {[%emt 0:00:47]} Nf6 {[%emt 0:00:48]} 6. e4 {[%emt 0:00:22]} Nbd7 {[%emt 0:01:24]} 7. Nf3 {[%emt 0:00:44]} g6 {[%emt 0:01:09]} 8. Nc3 {[%emt 0:00:01]} Nb6 {[%emt 0:01:43]} 9. Qd1 {[%emt 0:00:32]} Ng4 {[%emt 0:01:59]} 10. h3 {[%emt 0:00:19]} Nf6 11. Bf4 Bc4 {[%emt 0:04:15]} 12. Bxc4 {[%emt 0:01:26]} Nxc4 {[%emt 0:00:19]} 13. O-O {[%emt 0:00:48]} Bg7 {[%emt 0:00:27]} 14. Qe2 {[%emt 0:00:28]} Nb6 {[%emt 0:00:28]} 15. Rfd1 {[%emt 0:00:28]} Nh5 16. Bh2 e6 {[%emt 0:02:22]} 17. Rd3 {[%emt 0:03:36]} O-O {[%emt 0:00:13]} 18. Rad1 {[%emt 0:00:41]} Nf6 {[%emt 0:02:43]} 19. Bf4 {[%emt 0:02:38]} Nh5 {[%emt 0:01:20]} 20. Bc1 {[%emt 0:00:22]} Qc7 {[%emt 0:00:43]} 21. g3 {[%emt 0:00:20]} Rae8 {[%emt 0:02:26]} 22. Qc2 {[%emt 0:01:29]} f5 {[%emt 0:02:50]} 23. e5 {[%emt 0:00:35]} Qe7 {[%emt 0:01:26]} 24. Bg5 {[%emt 0:00:23]} Qc7 25. Nb5 Qb8 26. Nd6 f4 27. g4 Nf6 28. exf6 Bxf6 {[%emt 0:12:30]} 29. Nxe8 {[%emt 0:02:06]} Qxe8 30. Bxf6 Rxf6 31. Re1 Nd5 {[%emt 0:06:27]} 32. a3 {[%emt 0:01:18]} h6 {[%emt 0:00:30]} 33. h4 {[%emt 0:01:33]} Ne7 {[%emt 0:10:53]} 34. Rb3 b6 35. Qe4 Kg7 {[%emt 0:01:00]} 36. Qe5 {[%emt 0:01:56]} Qf7 {[%emt 0:01:01]} 37. g5 {[%emt 0:00:24]} hxg5 38. hxg5 Nd5 39. gxf6+ Nxf6 40. Ng5 Qe7 41. Rh3 Kg8 {[%emt 0:04:17]} 42. Nxe6 {[%emt 0:03:29]} Nh5 43. Qb8+ {[%emt 0:00:39]} Kf7 {[%emt 0:04:04]} 44. Nd8+ {[%emt 0:00:30]} Kf6 45. Rxe7 Kxe7 46. Nxc6+ Kf6 47. Qe5+ Kf7 48. Qe7+ Kg8 49. Nd8 1-0

[Event "19th IPCA WCC 2019"]
[Site "Ruzomberok"]
[Date "2019.07.05"]
[Round "8.21"]
[White "Frumin, Rebeka"]
[Black "Wollner, Bohus"]
[Result "1-0"]
[ECO "C47"]
[WhiteElo "1398"]
[BlackElo "1222"]
[Annotator "NA"]
[PlyCount "29"]
[EventDate "2019.06.28"]
[EventType "swiss"]
[EventCountry "SVK"]
[SourceTitle "playchess.com"]
[Source "ChessBase"]
[SourceQuality "1"]
[TimeControl "5400+30"]

1. e4 {[%emt 0:00:00]} e5 {[%emt 0:00:38]} 2. Nf3 {[%emt 0:00:28]} Nf6 {[%emt 0:00:19]} 3. Nc3 {[%emt 0:01:07]} Nc6 {[%emt 0:01:11]} 4. Bc4 {[%emt 0:01:38]} Na5 {[%emt 0:06:27]} 5. Nxe5 {[%emt 0:02:33]} Nxc4 {[%emt 0:02:37]} 6. Nxc4 {[%emt 0:00:15]} d6 {[%emt 0:02:20]} 7. h3 {[%emt 0:02:26]} Be6 {[%emt 0:00:56]} 8. Qe2 {[%emt 0:01:29]} Bxc4 {[%emt 0:06:22]} 9. Qxc4 {[%emt 0:00:15]} a6 {[%emt 0:00:05]} 10. O-O {[%emt 0:05:15]} Be7 {[%emt 0:03:18]} 11. Nd5 {[%emt 0:02:30]} Nxd5 {[%emt 0:00:31]} 12. Qxd5 {[%emt 0:00:25]} c6 {[%emt 0:00:26]} 13. Qf5 {[%emt 0:00:18]} Qd7 {[%emt 0:00:32]} 14. Re1 {[%emt 0:01:17]} O-O {[%emt 0:00:59]} 15. Qxd7 {[%emt 0:00:08]} 1-0

[Event "19th IPCA WCC 2019"]
[Site "Ruzomberok"]
[Date "2019.07.05"]
[Round "8.22"]
[White "Kostova, Erika"]
[Black "Engel, Katalin"]
[Result "0-1"]
[ECO "D04"]
[WhiteElo "1210"]
[BlackElo "1537"]
[Annotator "NA"]
[PlyCount "64"]
[EventDate "2019.06.28"]
[EventType "swiss"]
[EventCountry "SVK"]
[SourceTitle "playchess.com"]
[Source "ChessBase"]
[SourceQuality "1"]
[TimeControl "5400+30"]

1. d4 {[%emt 0:00:00]} d5 {[%emt 0:00:00]} 2. e3 {[%emt 0:00:00]} Nf6 {[%emt 0:00:14]} 3. Nf3 {[%emt 0:00:09]} Bg4 {[%emt 0:00:22]} 4. Nc3 {[%emt 0:00:30]} e6 {[%emt 0:00:18]} 5. Be2 {[%emt 0:00:25]} Bd6 {[%emt 0:03:21]} 6. O-O {[%emt 0:00:46]} Nbd7 {[%emt 0:00:29]} 7. Bd2 {[%emt 0:01:30]} a6 {[%emt 0:00:14]} 8. Nh4 {[%emt 0:01:31]} Bxe2 {[%emt 0:01:01]} 9. Nxe2 {[%emt 0:00:36]} Bxh2+ {[%emt 0:01:07]} 10. Kh1 {[%emt 0:01:00]} Ng4 {[%emt 0:00:00]} 11. g3 {[%emt 0:02:26]} Ndf6 {[%emt 0:04:16]} 12. Nf3 {[%emt 0:01:05]} Bxg3 {[%emt 0:00:45]} 13. Nxg3 {[%emt 0:00:33]} Ne4 {[%emt 0:01:44]} 14. Kg2 {[%emt 0:02:30]} f5 {[%emt 0:05:44]} 15. Be1 {[%emt 0:01:25]} h5 {[%emt 0:01:00]} 16. Rh1 {[%emt 0:01:06]} h4 {[%emt 0:02:11]} 17. Ne2 {[%emt 0:02:35]} g5 {[%emt 0:02:33]} 18. Rh3 {[%emt 0:03:46]} Nh6 {[%emt 0:06:05]} 19. Rh2 {[%emt 0:00:56]} Qf6 {[%emt 0:04:19]} 20. Ne5 {[%emt 0:02:41]} g4 {[%emt 0:01:48]} 21. Nf4 {[%emt 0:02:25]} O-O-O {[%emt 0:02:36]} 22. Nfg6 {[%emt 0:02:50]} h3+ {[%emt 0:00:43]} 23. Kh1 {[%emt 0:00:38]} Rhg8 {[%emt 0:00:32]} 24. f3 {[%emt 0:04:51]} Ng5 25. fxg4 {[%emt 0:09:28]} Rxg6 {[%emt 0:02:13]} 26. Nxg6 {[%emt 0:05:41]} Qxg6 {[%emt 0:00:12]} 27. gxf5 {[%emt 0:05:37]} Qxf5 {[%emt 0:00:48]} 28. Rf2 {[%emt 0:03:51]} Qe4+ {[%emt 0:00:25]} 29. Kg1 {[%emt 0:01:29]} Ng4 {[%emt 0:00:19]} 30. Qe2 {[%emt 0:03:08]} Nxf2 {[%emt 0:00:42]} 31. Qxf2 {[%emt 0:01:06]} Rg8 {[%emt 0:01:31]} 32. Kf1 {[%emt 0:01:23]} Nf3 {[%emt 0:01:24]} 0-1

[Event "19th IPCA WCC 2019"]
[Site "Ruzomberok"]
[Date "2019.07.06"]
[Round "9.1"]
[White "Yarmonov, Igor"]
[Black "Mukha, Nikolay"]
[Result "1/2-1/2"]
[ECO "A63"]
[WhiteElo "2389"]
[BlackElo "2159"]
[Annotator "NA RC"]
[PlyCount "20"]
[EventDate "2019.06.28"]
[EventType "swiss"]
[EventCountry "SVK"]
[SourceTitle "playchess.com"]
[Source "ChessBase"]
[SourceQuality "1"]
[TimeControl "5400+30"]

1. d4 {[%emt 0:00:00]} Nf6 {[%emt 0:00:00]} 2. c4 {[%emt 0:00:00]} c5 {[%emt 0:00:00]} 3. d5 {[%emt 0:00:05]} e6 {[%emt 0:00:00]} 4. Nc3 {[%emt 0:00:30]} exd5 {[%emt 0:00:00]} 5. cxd5 {[%emt 0:00:36]} d6 {[%emt 0:00:03]} 6. g3 {[%emt 0:00:23]} g6 {[%emt 0:00:01]} 7. Bg2 {[%emt 0:00:33]} Bg7 {[%emt 0:00:02]} 8. Nf3 {[%emt 0:00:23]} O-O {[%emt 0:00:12]} 9. O-O {[%emt 0:00:10]} Nbd7 {[%emt 0:00:22]} 10. Nd2 {[%emt 0:00:36]} a6 {[%emt 0:00:22]} 1/2-1/2

[Event "19th IPCA WCC 2019"]
[Site "Ruzomberok"]
[Date "2019.07.06"]
[Round "9.2"]
[White "Gurbanov, Andrei"]
[Black "Tebenkov, Vladislav"]
[Result "1-0"]
[ECO "E11"]
[WhiteElo "2300"]
[BlackElo "2096"]
[Annotator "NA"]
[PlyCount "99"]
[EventDate "2019.06.28"]
[EventType "swiss"]
[EventCountry "SVK"]
[SourceTitle "playchess.com"]
[Source "ChessBase"]
[SourceQuality "1"]
[TimeControl "5400+30"]

1. d4 {[%emt 0:00:15]} Nf6 {[%emt 0:00:00]} 2. c4 {[%emt 0:00:08]} e6 {[%emt 0:00:00]} 3. Nf3 {[%emt 0:00:03]} Bb4+ {[%emt 0:00:00]} 4. Nbd2 {[%emt 0:00:07]} d5 {[%emt 0:00:30]} 5. Qa4+ {[%emt 0:02:49]} Nc6 {[%emt 0:00:11]} 6. a3 {[%emt 0:00:22]} Be7 {[%emt 0:01:36]} 7. e3 {[%emt 0:00:35]} O-O {[%emt 0:05:39]} 8. Bd3 {[%emt 0:00:48]} Nb8 {[%emt 0:09:48]} 9. b4 {[%emt 0:02:34]} b6 {[%emt 0:01:46]} 10. c5 {[%emt 0:02:10]} Bb7 {[%emt 0:04:33]} 11. Bb2 {[%emt 0:07:10]} a5 {[%emt 0:05:38]} 12. Qb3 {[%emt 0:06:34]} axb4 {[%emt 0:08:38]} 13. axb4 {[%emt 0:00:24]} Rxa1+ {[%emt 0:00:18]} 14. Bxa1 {[%emt 0:00:05]} c6 {[%emt 0:00:13]} 15. Qa4 {[%emt 0:06:56]} Nbd7 {[%emt 0:03:24]} 16. Bc3 {[%emt 0:15:56]} Qa8 {[%emt 0:03:38]} 17. Qxa8 {[%emt 0:05:58]} Rxa8 {[%emt 0:00:06]} 18. Ke2 {[%emt 0:00:03]} b5 {[%emt 0:07:07]} 19. h3 {[%emt 0:01:51]} Ra3 {[%emt 0:04:32]} 20. Rc1 {[%emt 0:00:16]} g6 {[%emt 0:09:22]} 21. Kd1 {[%emt 0:01:19]} Kg7 {[%emt 0:02:41]} 22. Kc2 {[%emt 0:00:15]} Bd8 {[%emt 0:01:40]} 23. Kb2 {[%emt 0:00:12]} Ra8 {[%emt 0:00:16]} 24. g4 {[%emt 0:01:10]} Ng8 {[%emt 0:02:47]} 25. e4 {[%emt 0:01:52]} Ne7 {[%emt 0:02:24]} 26. e5 {[%emt 0:02:26]} Bc7 {[%emt 0:06:31]} 27. Nb3 {[%emt 0:04:20]} Rf8 {[%emt 0:01:46]} 28. Ra1 {[%emt 0:00:09]} Bb8 {[%emt 0:00:38]} 29. Re1 {[%emt 0:04:26]} Bc7 {[%emt 0:03:08]} 30. Nfd2 {[%emt 0:03:19]} Bc8 {[%emt 0:01:37]} 31. Re2 {[%emt 0:02:03]} Bb8 {[%emt 0:00:56]} 32. Nf1 {[%emt 0:01:51]} f5 {[%emt 0:01:29]} 33. exf6+ {[%emt 0:00:30]} Nxf6 {[%emt 0:00:23]} 34. Bd2 {[%emt 0:02:26]} Ne8 {[%emt 0:03:24]} 35. Bg5 {[%emt 0:00:32]} Ng8 {[%emt 0:00:15]} 36. Nbd2 {[%emt 0:00:52]} h6 {[%emt 0:00:11]} 37. Bh4 {[%emt 0:00:21]} g5 {[%emt 0:00:59]} 38. Bg3 {[%emt 0:00:36]} Bxg3 {[%emt 0:00:04]} 39. Nxg3 {[%emt 0:00:21]} Nef6 {[%emt 0:00:51]} 40. Re3 {[%emt 0:00:26]} Ne7 {[%emt 0:00:14]} 41. Nf3 {[%emt 0:00:35]} Ne8 {[%emt 0:00:39]} 42. Kc3 {[%emt 0:00:28]} Kg8 {[%emt 0:00:53]} 43. Bc2 {[%emt 0:01:55]} Ng7 {[%emt 0:00:22]} 44. Ne2 {[%emt 0:01:41]} Bd7 {[%emt 0:00:37]} 45. Ne5 {[%emt 0:00:10]} Be8 {[%emt 0:00:28]} 46. f3 {[%emt 0:00:07]} Rf6 {[%emt 0:00:23]} 47. Kd2 {[%emt 0:03:44]} h5 {[%emt 0:03:17]} 48. Ra3 {[%emt 0:00:06]} hxg4 {[%emt 0:00:23]} 49. hxg4 {[%emt 0:00:06]} Bg6 {[%emt 0:00:39]} 50. Bxg6 {[%emt 0:00:43]} 1-0

[Event "19th IPCA WCC 2019"]
[Site "Ruzomberok"]
[Date "2019.07.06"]
[Round "9.3"]
[White "Valenta, Vit"]
[Black "Shashikant, Kutwal"]
[Result "1/2-1/2"]
[ECO "A00"]
[WhiteElo "2147"]
[BlackElo "2176"]
[Annotator "NA"]
[PlyCount "75"]
[EventDate "2019.06.28"]
[EventType "swiss"]
[EventCountry "SVK"]
[SourceTitle "playchess.com"]
[Source "ChessBase"]
[SourceQuality "1"]
[TimeControl "5400+30"]

1. b4 {[%emt 0:00:00]} Nf6 {[%emt 0:00:00]} 2. Bb2 {[%emt 0:00:00]} g6 {[%emt 0:00:00]} 3. g3 {[%emt 0:00:00]} Bg7 {[%emt 0:00:26]} 4. Bg2 {[%emt 0:00:00]} O-O {[%emt 0:00:30]} 5. Nf3 {[%emt 0:00:05]} d6 {[%emt 0:00:31]} 6. O-O {[%emt 0:00:13]} e5 {[%emt 0:01:03]} 7. d3 {[%emt 0:00:07]} a5 {[%emt 0:01:30]} 8. b5 {[%emt 0:00:15]} Nbd7 {[%emt 0:01:22]} 9. c4 {[%emt 0:03:55]} e4 {[%emt 0:11:58]} 10. dxe4 {[%emt 0:07:23]} Nxe4 {[%emt 0:00:17]} 11. Bxg7 {[%emt 0:00:09]} Kxg7 {[%emt 0:00:17]} 12. Qd4+ {[%emt 0:00:17]} Qf6 {[%emt 0:02:05]} 13. Qxf6+ {[%emt 0:00:54]} Kxf6 {[%emt 0:17:31]} 14. Nfd2 {[%emt 0:01:50]} Nec5 {[%emt 0:09:29]} 15. Nc3 {[%emt 0:00:54]} Nb6 {[%emt 0:02:49]} 16. Nce4+ {[%emt 0:05:42]} Ke7 {[%emt 0:03:25]} 17. Nxc5 {[%emt 0:02:10]} dxc5 {[%emt 0:00:02]} 18. Ne4 {[%emt 0:01:38]} Na4 {[%emt 0:02:09]} 19. Rac1 {[%emt 0:01:58]} Rd8 {[%emt 0:07:40]} 20. Nc3 {[%emt 0:07:25]} Nxc3 {[%emt 0:00:17]} 21. Rxc3 {[%emt 0:00:01]} Rd2 {[%emt 0:00:28]} 22. Re3+ {[%emt 0:00:44]} Be6 {[%emt 0:03:54]} 23. a3 {[%emt 0:02:02]} Rb8 {[%emt 0:01:59]} 24. Rc1 {[%emt 0:02:31]} Kd6 {[%emt 0:04:41]} 25. f4 {[%emt 0:01:50]} c6 {[%emt 0:00:54]} 26. bxc6 {[%emt 0:15:40]} bxc6 {[%emt 0:00:09]} 27. Be4 {[%emt 0:00:18]} Rbb2 {[%emt 0:02:58]} 28. Kf2 {[%emt 0:03:48]} Ra2 {[%emt 0:04:41]} 29. Rcc3 {[%emt 0:01:58]} f5 {[%emt 0:02:53]} 30. Bb1 {[%emt 0:07:39]} Ra1 {[%emt 0:03:12]} 31. Red3+ {[%emt 0:00:55]} Rxd3 {[%emt 0:00:11]} 32. Bxd3 {[%emt 0:00:17]} h6 {[%emt 0:02:42]} 33. h4 {[%emt 0:01:03]} h5 {[%emt 0:01:43]} 34. e4 {[%emt 0:13:41]} fxe4 {[%emt 0:00:25]} 35. Bxe4 {[%emt 0:00:01]} Bf5 {[%emt 0:00:22]} 36. Bxf5 {[%emt 0:00:43]} gxf5 {[%emt 0:01:10]} 37. Ke2 {[%emt 0:00:25]} Ra2+ {[%emt 0:00:37]} 38. Kd1 {[%emt 0:00:26] Ke5} 1/2-1/2

[Event "19th IPCA WCC 2019"]
[Site "Ruzomberok"]
[Date "2019.07.06"]
[Round "9.4"]
[White "Tersinsev, Andrey"]
[Black "Nowak, Lukasz"]
[Result "0-1"]
[ECO "E43"]
[WhiteElo "2164"]
[BlackElo "2267"]
[Annotator "NA"]
[PlyCount "92"]
[EventDate "2019.06.28"]
[EventType "swiss"]
[EventCountry "SVK"]
[SourceTitle "playchess.com"]
[Source "ChessBase"]
[SourceQuality "1"]
[TimeControl "5400+30"]

1. d4 {[%emt 0:00:00]} Nf6 {[%emt 0:00:00]} 2. c4 {[%emt 0:00:00]} e6 {[%emt 0:00:00]} 3. Nc3 {[%emt 0:00:00]} Bb4 {[%emt 0:00:01]} 4. e3 {[%emt 0:00:07]} b6 {[%emt 0:00:27]} 5. Bd3 {[%emt 0:04:54]} Bb7 {[%emt 0:00:24]} 6. Nf3 {[%emt 0:00:10]} Ne4 {[%emt 0:03:18]} 7. Qc2 {[%emt 0:05:11]} f5 {[%emt 0:00:12]} 8. a3 {[%emt 0:04:33]} Bxc3+ {[%emt 0:01:04]} 9. bxc3 {[%emt 0:00:05]} O-O {[%emt 0:00:16]} 10. O-O {[%emt 0:02:22]} d6 {[%emt 0:03:18]} 11. Nd2 {[%emt 0:03:06]} Nxd2 {[%emt 0:05:00]} 12. Bxd2 {[%emt 0:01:34]} Nc6 {[%emt 0:07:28]} 13. f4 {[%emt 0:03:55]} Na5 {[%emt 0:01:09]} 14. e4 {[%emt 0:09:44]} fxe4 {[%emt 0:04:06]} 15. Bxe4 {[%emt 0:00:08]} Bxe4 {[%emt 0:00:11]} 16. Qxe4 {[%emt 0:00:04]} Qd7 {[%emt 0:00:10]} 17. Qe2 {[%emt 0:06:15]} Rae8 {[%emt 0:05:26]} 18. Be3 {[%emt 0:07:45]} Qc6 {[%emt 0:09:26]} 19. c5 {[%emt 0:02:19]} bxc5 {[%emt 0:09:20]} 20. dxc5 {[%emt 0:00:10]} Nb3 {[%emt 0:00:09]} 21. Rad1 {[%emt 0:03:11]} Nxc5 {[%emt 0:00:30]} 22. Rf3 {[%emt 0:07:23]} a5 {[%emt 0:05:23]} 23. Rh3 {[%emt 0:04:12]} Nd7 {[%emt 0:13:44]} 24. Qh5 {[%emt 0:03:26]} Nf6 {[%emt 0:01:58]} 25. Qxa5 {[%emt 0:01:12]} Nd5 {[%emt 0:02:16]} 26. c4 {[%emt 0:03:16]} Nxe3 {[%emt 0:02:30]} 27. Rxe3 {[%emt 0:00:02]} Rxf4 {[%emt 0:00:16]} 28. c5 {[%emt 0:08:42]} Rf5 {[%emt 0:01:51]} 29. Rc3 {[%emt 0:02:22]} Ref8 {[%emt 0:02:50]} 30. h4 {[%emt 0:03:40]} d5 {[%emt 0:10:30]} 31. Rg3 {[%emt 0:00:52]} e5 {[%emt 0:01:03]} 32. a4 {[%emt 0:02:03]} Qf6 {[%emt 0:02:59]} 33. Qxc7 {[%emt 0:00:53]} e4 {[%emt 0:01:41]} 34. Qd7 {[%emt 0:02:35]} Rh5 {[%emt 0:01:15]} 35. Rxd5 {[%emt 0:09:11]} Qf1+ {[%emt 0:02:33]} 36. Kh2 {[%emt 0:00:03]} Rxh4+ {[%emt 0:00:09]} 37. Rh3 {[%emt 0:00:05]} Qf4+ {[%emt 0:00:11]} 38. Kh1 {[%emt 0:00:25]} Qf1+ {[%emt 0:01:04]} 39. Kh2 {[%emt 0:00:03]} Qf4+ {[%emt 0:00:07]} 40. Kh1 {[%emt 0:00:03]} e3 {[%emt 0:01:59]} 41. Qe6+ {[%emt 0:02:27]} Kh8 {[%emt 0:00:10]} 42. Rxh4 {[%emt 0:01:05]} Qxh4+ {[%emt 0:00:09]} 43. Qh3 {[%emt 0:00:50]} Qxh3+ {[%emt 0:00:34]} 44. gxh3 {[%emt 0:00:02]} e2 {[%emt 0:00:10]} 45. Re5 {[%emt 0:00:13]} Rf1+ {[%emt 0:00:08]} 46. Kg2 {[%emt 0:00:37]} e1=Q {[%emt 0:00:11]} 0-1

[Event "19th IPCA WCC 2019"]
[Site "Ruzomberok"]
[Date "2019.07.06"]
[Round "9.5"]
[White "Babula, Milan"]
[Black "Palin, Denis"]
[Result "1/2-1/2"]
[ECO "C10"]
[WhiteElo "2220"]
[BlackElo "2180"]
[Annotator "NA"]
[PlyCount "85"]
[EventDate "2019.06.28"]
[EventType "swiss"]
[EventCountry "SVK"]
[SourceTitle "playchess.com"]
[Source "ChessBase"]
[SourceQuality "1"]
[TimeControl "5400+30"]

1. e4 {[%emt 0:00:00]} e6 {[%emt 0:00:00]} 2. d4 {[%emt 0:00:00]} d5 {[%emt 0:00:00]} 3. Nc3 {[%emt 0:00:00]} dxe4 {[%emt 0:00:00]} 4. Nxe4 {[%emt 0:00:00]} Nd7 {[%emt 0:00:00]} 5. Nf3 {[%emt 0:00:00]} Ngf6 {[%emt 0:00:00]} 6. Nxf6+ {[%emt 0:00:05]} Nxf6 {[%emt 0:00:00]} 7. Bd3 {[%emt 0:00:04]} c5 {[%emt 0:00:00]} 8. O-O {[%emt 0:00:18]} Qc7 {[%emt 0:00:04]} 9. Qe2 {[%emt 0:05:35]} Be7 {[%emt 0:02:07]} 10. dxc5 {[%emt 0:02:12]} Qxc5 {[%emt 0:00:09]} 11. a3 {[%emt 0:27:58]} Qc7 {[%emt 0:08:05]} 12. Bg5 {[%emt 0:06:56]} O-O {[%emt 0:06:16]} 13. Rad1 {[%emt 0:05:20]} Bd7 {[%emt 0:02:55]} 14. Ne5 {[%emt 0:07:16]} Bc6 {[%emt 0:04:12]} 15. Nxc6 {[%emt 0:10:27]} Qxc6 {[%emt 0:00:11]} 16. Be4 {[%emt 0:05:59]} Nxe4 {[%emt 0:11:34]} 17. Bxe7 {[%emt 0:00:04]} Rfe8 {[%emt 0:00:04]} 18. Bh4 {[%emt 0:02:01]} f6 {[%emt 0:04:43]} 19. Rd4 {[%emt 0:02:54]} Nd6 {[%emt 0:00:55]} 20. Rd3 {[%emt 0:07:23]} Nf5 {[%emt 0:01:26]} 21. Bg3 {[%emt 0:00:18]} e5 {[%emt 0:03:48]} 22. c3 {[%emt 0:04:02]} e4 {[%emt 0:17:37]} 23. Rdd1 {[%emt 0:00:20]} e3 {[%emt 0:05:16]} 24. Bf4 {[%emt 0:01:54]} Re4 {[%emt 0:12:46]} 25. fxe3 {[%emt 0:03:37]} Qe6 {[%emt 0:00:48]} 26. Rf3 {[%emt 0:03:02]} g5 {[%emt 0:02:22]} 27. Bg3 {[%emt 0:01:13]} Re8 {[%emt 0:11:34]} 28. Qd3 {[%emt 0:01:01]} g4 {[%emt 0:04:55]} 29. Rf4 {[%emt 0:01:40]} Nxg3 {[%emt 0:00:33]} 30. hxg3 {[%emt 0:00:02]} Rxe3 {[%emt 0:00:01]} 31. Qd4 {[%emt 0:00:19]} f5 {[%emt 0:00:53]} 32. Rdf1 {[%emt 0:00:24]} Re1 {[%emt 0:01:25]} 33. Rxe1 {[%emt 0:01:44]} Qxe1+ {[%emt 0:00:02]} 34. Rf1 {[%emt 0:00:06]} Qxg3 {[%emt 0:00:49]} 35. Qd5+ {[%emt 0:00:32]} Kh8 {[%emt 0:00:20]} 36. Qxf5 {[%emt 0:02:02]} Qe3+ {[%emt 0:00:25]} 37. Qf2 {[%emt 0:01:04]} g3 {[%emt 0:00:58]} 38. Qxe3 {[%emt 0:00:17]} Rxe3 {[%emt 0:00:02]} 39. Rd1 {[%emt 0:00:12]} Re2 {[%emt 0:00:06]} 40. b4 {[%emt 0:00:08]} Rc2 {[%emt 0:00:36]} 41. Kf1 {[%emt 0:00:02]} Rf2+ {[%emt 0:01:15]} 42. Kg1 {[%emt 0:00:35]} Ra2 {[%emt 0:00:53]} 43. Kf1 {[%emt 0:00:10]} 1/2-1/2